Cogmind - Beta 15 @@@ ROGUE MODE // 2025.07.25 @ 19:55:55 Player: FrigidRock Result: Destroyed by S-43 Plague with Heavy Machine Gun Performance ------------- Evolutions (7) 3500 Regions Visited (20) 4000 Robots Destroyed (198) 990 Value Destroyed (9127) 9127 Prototype IDs (20) 400 Alien Tech Used (0) 0 Bonus (6916) 6916 TOTAL SCORE: 24933 Bonus ------- High Alert Combat Kills 284 Follower Combat Kills 2447 Entered Garrisons 1200 Used RIF Installer 3000 Friendly Fire -15 Cogmind --------- Core Integrity 0/1300 Matter 261/300 Energy 35/100 System Corruption 11% Temperature Cool (0) Movement Core (50) Location -3/Research Parts ------- > --- POWER (2) -------- (None) > --- PROPULSION (5) --- (None) > --- UTILITY (11) ----- (None) > --- WEAPON (3) ------- (None) > --- INVENTORY (5) ---- Improved Antigrav System Energy Well (0) Improved Force Field Advanced KE Penetrator Advanced Remote Datajack Peak State ------------ > --- POWER ------------ Reinforced Fission Core Light Quantum Reactor > --- PROPULSION ------- Centrium Wheel Centrium Wheel Centrium Wheel Centrium Wheel Centrium Wheel > --- UTILITY ---------- Advanced Cryofiber Web Advanced Cooling System High-capacity Storage Unit Improved Terrain Scanner Targeting Computer Improved Phase Shifter Improved Force Field Improved Hacking Suite Advanced System Shield Relay Coupler [Grunt] Relay Coupler [Brawler] > --- WEAPON ----------- Matter Neutralizer Matter Neutralizer Advanced Remote Datajack > --- INVENTORY -------- Light Ion Engine Light Antimatter Reactor Light Antimatter Reactor Advanced Heat Sink Improved Reaction Control System Relay Coupler [NC] Relay Coupler [Swarmer] Relay Coupler [Brawler] Relay Coupler [Duelist] Relay Coupler [Sentry] Relay Coupler [Sentry] Relay Coupler [Sentry] Relay Coupler [Sentry] Relay Coupler [Demolisher] Relay Coupler [Specialist] Relay Coupler [Hunter] Relay Coupler [Hunter] Improved Arc Projector Compact HERF Cannon [Rating: 129] Favorites ----------- Power Cooled Ion Engine Engine Cooled Ion Engine Power Core Reinforced Fission Core Reactor Light Quantum Reactor Propulsion Centrium Wheel Treads Medium Treads Leg Carbon-fiber Leg Wheel Centrium Wheel Hover Unit Backup Propulsion III Flight Unit Nuclear Pulse Thruster Utility Huge Storage Unit Device Experimental Sensor Array Storage Huge Storage Unit Processor Improved Signal Interpreter Hackware Relay Coupler [Brawler] Protection Hardened Medium Armor Plating Weapon Matter Neutralizer Energy Gun Heavy EM Shotgun Energy Cannon Matter Neutralizer Ballistic Gun Enhanced Autogun Ballistic Cannon Heavy Linear Accelerator Launcher Grenade Launcher Special Weapon Advanced Remote Datajack Special Melee Weapon Improved Datajack Build | -11 -10 -10 -10 -9 -8 -8 -8 -8 -7 -7 -7 -7 -6 -6 -6 -6 -5 -4 -4 -3 ------- Run | Yrd Mat Min Exi Min Mat Gar Mat Gar Fac Gar Fac Gar Fac Was Fac Gar Fac Fac Gar Res Slots Evolved 14 | . . . . . 4 . . . 2 . . . 2 . . . 2 2 . 2 Power 1 | . . . . . . . . . . . . . . . . . 1 . . . Propulsion 3 | . . . . . . . . . . . . . 2 . . . . 1 . . Utility 9 | . . . . . 4 . . . 1 . . . . . . . 1 1 . 2 Weapon 1 | . . . . . . . . . 1 . . . . . . . . . . . Parts Attached 213 | 8 10 5 . 3 28 4 2 9 3 8 4 7 . 7 13 7 31 18 17 29 Power 23 | 1 1 1 . . 2 . . 1 . 2 . 1 . . 1 . 3 2 4 4 Engine 9 | 1 1 1 . . 2 . . . . 1 . . . . 1 . 1 . 1 . Core 5 | . . . . . . . . 1 . . . . . . . . 2 1 1 . Reactor 9 | . . . . . . . . . . 1 . 1 . . . . . 1 2 4 Propulsion 54 | 2 3 . . 2 5 1 . 1 . . . 1 . 3 2 2 17 5 3 7 Treads 5 | . . . . . . . . . . . . . . . . 1 4 . . . Leg 1 | . . . . . . . . . . . . . . . . 1 . . . . Wheel 31 | 2 3 . . 2 5 1 . 1 . . . 1 . . . . 8 5 3 . Hover 15 | . . . . . . . . . . . . . . 1 2 . 5 . . 7 Flight 2 | . . . . . . . . . . . . . . 2 . . . . . . Utility 82 | 2 2 2 . . 9 1 2 6 2 4 4 2 . 3 7 4 5 7 7 13 Device 28 | 2 1 1 . . 3 . . . . 1 . 1 . 2 4 . 1 5 2 5 Storage 3 | . . 1 . . . . . . . . . . . . 1 . . 1 . . Processor 6 | . . . . . 4 . . . . . . . . . . . 1 . 1 . Hackware 37 | . . . . . . 1 2 6 2 3 4 1 . . 1 3 2 1 4 7 Protection 8 | . 1 . . . 2 . . . . . . . . 1 1 1 1 . . 1 Artifact . | . . . . . . . . . . . . . . . . . . . . . Weapon 54 | 3 4 2 . 1 12 2 . 1 1 2 . 3 . 1 3 1 6 4 3 5 Energy Gun 16 | 1 . . . . 7 1 . . . . . . . . . . 2 3 1 1 Energy Cannon 8 | . . . . . . . . . . . . 3 . . 1 . . 1 2 1 Ballistic Gun 12 | 2 . . . . 3 . . . . 2 . . . . . . 3 . . 2 Ballistic Cannon 7 | . 3 2 . . . . . . . . . . . . 2 . . . . . Launcher 6 | . 1 . . 1 2 . . . . . . . . . . 1 1 . . . Special Weapon 4 | . . . . . . . . 1 1 . . . . 1 . . . . . 1 Impact Weapon . | . . . . . . . . . . . . . . . . . . . . . Slashing Weapon . | . . . . . . . . . . . . . . . . . . . . . Piercing Weapon . | . . . . . . . . . . . . . . . . . . . . . Special Melee Weapon 1 | . . . . . . 1 . . . . . . . . . . . . . . Unidentified Prototypes 18 | . . 1 . . 6 . . . . . . . . . 3 . 4 2 . 2 Corrupted Parts 2 | . . . . . . . . 1 . . . . . . . . . . 1 . System Corruption 2 | . . . . . . . . 1 . . . . . . . . . . 1 . Parts Lost 100 | . 5 . . . 7 2 2 6 1 . . 12 . . 2 1 21 2 10 29 Power 12 | . 1 . . . . . . 2 . . . 1 . . . . 2 . 2 4 Propulsion 27 | . 2 . . . 4 . . 1 . . . 1 . . 2 1 9 . 2 5 Utility 34 | . 1 . . . 3 2 1 2 . . . 3 . . . . 5 1 2 14 Weapon 27 | . 1 . . . . . 1 1 1 . . 7 . . . . 5 1 4 6 Highest Loss Streak 22 | . 4 . . . 2 1 1 3 1 . . 10 . . 1 1 8 1 5 22 To Critical Strikes 2 | . . . . . . . . . . . . . . . . . 1 1 . . Average Backups 16 | 2 4 10 19 20 21 21 22 20 21 20 22 18 5 4 6 16 17 17 18 17 Power 1 | . . . 1 1 2 3 3 2 2 2 3 2 1 . . 1 . 2 1 2 Propulsion 1 | . . . 2 2 3 2 2 1 1 1 1 . . . . . . 2 1 . Utility 8 | . 1 4 9 9 5 8 12 11 14 14 15 13 4 2 3 9 9 8 12 12 Weapon 4 | . 1 3 6 6 8 6 4 3 2 2 2 1 . . 1 5 5 4 2 1 Tool/Special . | . . . . . . . . . . . . . . . . . . . . . Unused Backups 41 | . 4 . . . 6 3 . 1 . . . 9 . 2 1 2 2 2 . 9 Power 3 | . 1 . . . . . . . . . . . . . . . . 1 . 1 Propulsion 4 | . . . . . 2 . . . . . . . . . . . . . . 2 Utility 25 | . . . . . 3 2 . 1 . . . 9 . 2 1 2 . . . 5 Weapon 8 | . 3 . . . 1 1 . . . . . . . . . . 2 1 . . Tool/Special 1 | . . . . . . . . . . . . . . . . . . . . 1 Average Slot Usage (%) 90 | . 98 100 100 100 96 88 82 83 81 90 89 78 . 60 81 91 87 92 96 93 Engine 6 | . 14 14 14 14 9 9 9 5 7 5 . . . 5 6 6 2 . 2 1 Core 1 | . . . . . . . . 3 . . . . . . . . 7 4 4 2 Treads 1 | . . . . . . . . . . . . . . . . 5 8 . . . Wheel 13 | . 27 28 28 28 15 9 9 9 7 7 7 6 . . . . 3 24 25 14 Hover 3 | . . . . . . . . . . . . . . 11 22 17 5 1 . 8 Device 13 | . 24 14 14 14 20 15 9 2 . 1 5 2 . 4 24 20 7 14 12 13 Storage 6 | . . 6 14 14 9 9 9 9 7 7 7 6 . . 4 6 5 5 5 4 Processor 6 | . . . . . 15 18 18 18 15 15 7 6 . . . . 2 . 4 3 Hackware 11 | . . . . . . . 6 19 26 28 30 29 . . 4 12 22 21 23 23 Protection 4 | . 3 7 . . 8 8 4 . . . . . . 17 7 6 2 . . 1 Energy Gun 4 | . 8 . . . 8 11 10 6 7 5 . 3 . 11 . . 2 4 . 1 Energy Cannon 1 | . . . . . . . . . . . . 4 . . . 1 . 3 7 6 Ballistic Gun 3 | . 8 . . . 5 . . 2 . 6 15 6 . . . . 4 5 . . Ballistic Cannon 3 | . 9 18 14 14 1 . . . . . . . . . 4 8 3 . . . Launcher 2 | . 2 9 14 14 2 6 1 3 1 . . . . . . . 1 . . . Special Weapon 1 | . . . . . . . . . 7 7 7 1 . 1 4 1 . . 3 2 Peak Build Rating 129 | 9 9 22 22 22 48 49 49 49 47 67 68 67 1 58 84 90 97 122 122 129 Average Rating 57 | 5 8 17 22 22 38 46 45 41 43 51 65 54 1 36 69 83 77 112 107 115 On Entrance 45 | . 9 7 22 22 22 47 49 41 44 44 67 65 1 1 51 78 81 72 122 110 Naked Turns 76 | . . . . . . . . . . . . 23 13 36 . . . . . 4 Heaviest Build 119 | 11 15 98 98 98 112 112 105 94 94 110 110 113 . 34 102 102 105 119 114 119 Greatest Support 119 | 20 20 20 20 20 28 28 28 28 28 28 28 28 3 28 49 41 119 80 80 85 Greatest Overweight (x) 27 | . . 4 4 4 10 3 3 3 3 3 3 4 . 2 2 2 27 2 1 1 Average Overweight (x) 2 | . . 1 4 4 4 3 3 3 3 3 3 2 . . 1 2 1 . . . Largest Inventory Capacity 25 | 5 5 25 25 25 25 25 25 25 25 25 25 25 5 5 20 20 20 20 20 20 Average Capacity 20 | 5 5 14 25 25 25 25 25 25 25 25 25 22 5 5 17 20 20 20 20 19 Most Carried 25 | 5 5 19 19 25 25 25 25 25 23 25 25 22 5 5 9 20 20 20 20 20 Average Carried 17 | 1 4 10 19 20 21 24 24 21 21 21 22 18 5 4 6 16 17 17 18 17 Final Capacity 25 | 5 5 25 25 25 25 25 25 25 25 25 25 5 5 5 20 20 20 20 20 5 Final Carried 25 | 5 5 19 19 25 24 25 23 24 22 25 22 5 5 5 7 20 15 18 20 5 Class Distribution -------------------- 33% | Mutant 13% | Bothacker-Mutant 12% | Bothacker-Gunner 8% | Scavenger-Mutant 8% | Botlord-Tank 6% | Botlord-Gunner 5% | Bothacker-Tank 5% | Tank 3% | Botlord-Mutant 3% | Skirmisher Dominant Class ---------------- Scavenger-Mutant | -10/Materials Mutant | -10/Mines Mutant | -10/Exiles Mutant | -9/Mines Mutant | -8/Materials Mutant | -8/Garrison Bothacker-Mutant | -8/Materials Bothacker-Mutant | -8/Garrison Bothacker-Mutant | -7/Factory Bothacker-Gunner | -7/Garrison Bothacker-Gunner | -7/Factory Bothacker-Gunner | -7/Garrison Mutant | -6/Factory Mutant | -6/Waste Mutant | -6/Factory Bothacker-Tank | -6/Garrison Bothacker-Gunner | -5/Factory Bothacker-Tank | -4/Factory Botlord-Gunner | -4/Garrison Botlord-Tank | -3/Research Resources | -11 -10 -10 -10 -9 -8 -8 -8 -8 -7 -7 -7 -7 -6 -6 -6 -6 -5 -4 -4 -3 ----------- Run | Yrd Mat Min Exi Min Mat Gar Mat Gar Fac Gar Fac Gar Fac Was Fac Gar Fac Fac Gar Res Matter Collected 7297 | 179 472 361 . 105 979 170 55 430 . 263 94 206 . 60 224 679 1438 203 741 638 Remotely . | . . . . . . . . . . . . . . . . . . . . . Salvage Created 7259 | 46 632 30 . 119 1580 826 212 352 . 199 108 43 . . 15 144 1463 252 587 651 Parts 407 | 6 40 1 . 7 107 39 17 34 . 5 5 6 . . 1 5 61 14 19 40 Haulers Intercepted 12 | . 2 . . . 5 . . . . . 1 . . . . . 3 1 . . Recyclers Shooed 6 | 1 . 1 . 2 . . . . . . . . . . . . 1 . . 1 Parts Field Recycled . | . . . . . . . . . . . . . . . . . . . . . Retrieved Matter . | . . . . . . . . . . . . . . . . . . . . . Parts Self-Destructed . | . . . . . . . . . . . . . . . . . . . . . Prevented . | . . . . . . . . . . . . . . . . . . . . . Kills | -11 -10 -10 -10 -9 -8 -8 -8 -8 -7 -7 -7 -7 -6 -6 -6 -6 -5 -4 -4 -3 ------- Run | Yrd Mat Min Exi Min Mat Gar Mat Gar Fac Gar Fac Gar Fac Was Fac Gar Fac Fac Gar Res Combat Hostiles Destroyed 141 | . 14 3 . . 33 17 4 11 . 3 1 1 . . . 6 20 5 15 8 Guns 62 | . 10 . . . 19 6 . 5 . 3 1 . . . . . 9 5 1 3 Cannons 29 | . 2 1 . . 4 . . . . . . 1 . . . 4 6 . 7 4 AOE 45 | . 2 2 . . 9 10 4 6 . . . . . . . 1 5 . 6 . Classes Destroyed 16 | 1 4 . . 2 2 2 . 2 . . . . . . 1 . . . 2 . Worker 11 | . . . . 1 2 . . . . . . . . . . . 7 . . 1 Builder 7 | . . . . . 2 . 1 . . . . . . . . . 4 . . . Tunneler 4 | 2 . . . 1 1 . . . . . . . . . . . . . . . Hauler 12 | . 2 . . . 5 . . . . . 1 . . . . . 3 1 . . Recycler 4 | . . . . 1 1 . . . . . . . . . . . 2 . . . Operator 1 | . . . . . . . . . . . . . . . 1 . . . . . Watcher 14 | . 3 . . . 5 . 2 . . . . . . . . . 3 . . 1 Swarmer 39 | . 3 . . . 17 4 2 . . 1 . . . . . . . 5 6 1 Cutter 5 | . . . . . . . . 3 . 2 . . . . . . . . . . Grunt 54 | . 11 3 . . 9 7 1 2 . 1 1 . . . . 2 8 . 6 3 Brawler 2 | . . . . . . 2 . . . . . . . . . . . . . . Duelist 3 | . . . . . . . . . . . . . . . . . . . 2 1 Sentry 16 | . . . . . 7 2 1 . . . . . . . . 3 3 . . . Hunter 3 | . . . . . . 2 . 1 . . . . . . . . . . . . Programmer 22 | . . . . . . . . 6 . . . 1 . . . 1 9 . 1 4 Behemoth 1 | . . . . . . . . . . . . . . . . . . . 1 . Best Kill Streak 10 | 2 3 2 . 2 5 4 2 3 . 2 2 1 . . 1 3 10 5 5 3 Combat Bots Only 5 | . 3 2 . . 4 4 2 3 . 2 1 1 . . . 3 4 5 5 3 Max Kills in Single Turn 4 | 1 2 1 . 1 4 4 2 2 . 1 1 1 . . 1 1 2 2 3 2 Gunslinging 1 | . 1 . . . . . . . . . . . . . . . . . . . Exploded 4 | . 1 1 . . 4 4 2 2 . . . . . . . 1 2 . 3 . Melee . | . . . . . . . . . . . . . . . . . . . . . Uniques/NPCs Destroyed . | . . . . . . . . . . . . . . . . . . . . . Combat | -11 -10 -10 -10 -9 -8 -8 -8 -8 -7 -7 -7 -7 -6 -6 -6 -6 -5 -4 -4 -3 -------- Run | Yrd Mat Min Exi Min Mat Gar Mat Gar Fac Gar Fac Gar Fac Was Fac Gar Fac Fac Gar Res Hostile Shots Fired 1262 | . 61 5 . . 123 60 9 66 9 14 10 171 . . 17 99 187 62 117 252 Missed 364 | . 15 . . . 37 10 3 16 3 4 5 68 . . 3 27 61 17 26 69 Hits 898 | . 46 5 . . 86 50 6 50 6 10 5 103 . . 14 72 126 45 91 183 Melee 25 | . . . . . . . . 2 . 4 . . . . . . . . 19 . Projectile 873 | . 46 5 . . 86 50 6 48 6 6 5 103 . . 14 72 126 45 72 183 AOE 4 | . . . . . . . . 1 . 1 . . . . . . 2 . . . Critical Strikes 37 | . 1 . . . 2 1 2 4 . 1 . 2 . . . 1 5 3 10 5 Part Disruptions 1 | . . . . . 1 . . . . . . . . . . . . . . . Damage Taken 15750 | . 564 103 . . 1156 644 132 831 46 254 107 1454 . . 243 686 2951 529 1785 4265 Core 3135 | . 112 2 . . 92 115 18 185 . 117 34 273 . . . 91 433 41 321 1301 Absorbed by Shields 1041 | . . . . . 68 83 . . . 6 . . . . . . . 267 489 128 Ignored by Resistances 43 | . . . . . . . . . . . . . . . . . . 24 19 . Regen/Repaired (Parts) 408 | . . . . . . . . . . . . . . 34 33 254 87 . . . Core Remaining (%) 61 | 100 . . . 54 . . . 25 . . . 39 . . . 89 56 . 68 . Volleys Fired 638 | 6 60 22 . 10 108 32 9 38 4 28 19 22 . . 8 49 86 13 71 53 Largest 3 | 2 2 2 . 1 2 2 2 2 1 2 2 3 . . 2 2 3 3 3 3 Hottest 315 | 70 70 67 . 37 111 100 100 94 5 86 61 156 . . 114 145 164 160 315 275 Shots Fired 1017 | 12 114 26 . 10 170 46 13 64 4 39 24 38 . . 13 61 166 23 112 82 Gun 545 | 12 76 . . . 132 30 8 54 . 29 10 20 . . . . 119 19 11 25 Cannon 269 | . 32 9 . 10 13 . . . . . . 11 . . 13 48 32 . 65 36 Launcher 105 | . 6 17 . . 25 16 5 9 . . . . . . . 3 14 . 10 . Special 98 | . . . . . . . . 1 4 10 14 7 . . . 10 1 4 26 21 Kinetic 437 | 6 70 9 . 10 98 . . 22 . 11 10 15 . . 13 45 102 9 5 12 Thermal 275 | 6 38 . . . 14 2 . 32 . 18 . 6 . . . . 49 . 65 45 Explosive 63 | . 6 17 . . 4 . . 9 . . . . . . . 3 14 . 10 . Electromagnetic 144 | . . . . . 54 44 13 . . . . 10 . . . 3 . 10 6 4 Robot Hit Streak 22 | 6 9 4 . 3 18 22 2 7 9 9 3 8 . . 3 20 15 11 17 10 Robot Miss Streak 10 | 1 5 2 . 4 5 2 2 3 1 3 2 7 . . 10 5 7 1 3 2 Penetration Max 1 | . . . . . . . . . . . . . . . . . 1 1 1 1 Secondary Targets 9 | . 1 . . . 1 2 . . . 1 . . . . . . 3 . . 1 Max Gunslinging Chain 1 | . 1 . . . 1 1 . . . 1 . . . . . . 1 . . 1 Shots Hit Robots 649 | 10 60 7 . 5 114 28 12 38 3 25 13 22 . . 7 46 121 18 68 52 Core Hits 386 | 3 30 7 . 2 76 29 11 23 . 7 2 5 . . 5 23 97 11 35 20 Critical Kills 4 | . . . . . . . . . . . . . . . . . . 1 2 1 Critical Parts Destroyed 5 | . . . . . 1 . . . . . . . . . . . 2 1 . 1 Critical Strikes 17 | . . . . . 3 . . 2 . 1 . . . . . 2 3 2 2 2 Burn 4 | . . . . . 1 . . 2 . 1 . . . . . . . . . . Meltdown 2 | . . . . . . . . . . . . . . . . . . . 1 1 Destroy 7 | . . . . . 1 . . . . . . . . . . . 2 2 1 1 Blast 4 | . . . . . 1 . . . . . . . . . . 2 1 . . . Melee Attacks 25 | . . . . . . 2 6 17 . . . . . . . . . . . . Impact . | . . . . . . . . . . . . . . . . . . . . . Slashing . | . . . . . . . . . . . . . . . . . . . . . Piercing . | . . . . . . . . . . . . . . . . . . . . . Sneak Attacks 1 | . . . . . . . . 1 . . . . . . . . . . . . Combat Hostiles 1 | . . . . . . . . 1 . . . . . . . . . . . . Follow-up Attacks . | . . . . . . . . . . . . . . . . . . . . . Damage Inflicted 21248 | 125 993 334 . 118 3363 1287 404 1153 . 314 113 393 . . 305 2623 5331 326 2668 1398 Guns 8353 | 125 529 . . . 1989 553 118 684 . 314 113 241 . . . . 2676 326 150 535 Cannons 7047 | . 228 73 . 118 263 . . . . . . 152 . . 305 2200 1445 . 1424 839 Explosions 5809 | . 231 257 . . 1111 734 286 469 . . . . . . . 423 1204 . 1094 . Melee . | . . . . . . . . . . . . . . . . . . . . . Ramming 39 | . 5 4 . . . . . . . . . . . . . . 6 . . 24 Kinetic 8818 | 48 507 73 . 118 1345 . . 269 . 92 113 172 . . 305 2121 3062 203 117 273 Thermal 5113 | 77 250 . . . 305 200 85 415 . 222 . 118 . . . . 1059 . 1424 958 Explosive 4163 | . 231 257 . . 485 . . 469 . . . . . . . 423 1204 . 1094 . Electromagnetic 3115 | . . . . . 1228 1087 319 . . . . 103 . . . 79 . 123 33 143 Impact . | . . . . . . . . . . . . . . . . . . . . . Slashing . | . . . . . . . . . . . . . . . . . . . . . Piercing . | . . . . . . . . . . . . . . . . . . . . . Highest Corruption 11 | . . . . . . . . 10 . . . 2 . . 1 2 10 . 2 11 Average Corruption 3 | . . . . . . . . 6 . . . 1 . . 1 1 6 . 1 5 Corruption Purged . | . . . . . . . . . . . . . . . . . . . . . Corruption Blocked . | . . . . . . . . . . . . . . . . . . . . . Effects 77 | . . . . . . . . 18 . . . . . . 1 7 29 . 7 15 Message Errors 21 | . . . . . . . . 5 . . . . . . . 4 6 . 3 3 Matter Fused 21 | . . . . . . . . 7 . . . . . . . 1 9 . . 4 Heat Flow Errors 8 | . . . . . . . . 2 . . . . . . . 1 2 . 1 2 Energy Discharges 6 | . . . . . . . . 1 . . . . . . . . 2 . 1 2 Parts Rejected 1 | . . . . . . . . . . . . . . . . . . . 1 . Data Loss (minor) 7 | . . . . . . . . 2 . . . . . . 1 . 1 . . 3 Data Loss (major) 3 | . . . . . . . . . . . . . . . . . 2 . 1 . Misfires 5 | . . . . . . . . 1 . . . . . . . . 3 . . 1 Alerts 1 | . . . . . . . . . . . . . . . . 1 . . . . Weapon Failures 4 | . . . . . . . . . . . . . . . . . 4 . . . Overload Shots . | . . . . . . . . . . . . . . . . . . . . . Overflow Damage 525 | . . 3 . 21 26 . 7 20 . . . 17 . . . 131 157 . 143 . Projectiles 443 | . . 3 . 21 . . . . . . . 17 . . . 131 157 . 114 . Explosions 82 | . . . . . 26 . 7 20 . . . . . . . . . . 29 . Melee . | . . . . . . . . . . . . . . . . . . . . . Knockbacks 27 | . 1 . . 2 1 . . . . . . . . . 1 8 13 . . 1 Impact 1 | . . . . . . . . . . . . . . . . . . . . 1 Kinetic 25 | . 1 . . 2 1 . . . . . . . . . 1 8 12 . . . Secondary 1 | . . . . . . . . . . . . . . . . . 1 . . . Self-Inflicted Damage 562 | . 26 32 . . 172 68 47 92 . . . . . . . . 25 . 88 12 Shots 22 | . 1 2 . . 8 4 2 2 . . . . . . . . 1 . 2 . Rammed 5 | . 1 1 . . . . . . . . . . . . . . 2 . . 1 Targets Rammed 5 | . 1 1 . . . . . . . . . . . . . . 2 . . 1 Kicked . | . . . . . . . . . . . . . . . . . . . . . Crushed . | . . . . . . . . . . . . . . . . . . . . . Highest Temperature 654 | 27 254 30 . . 204 182 60 207 . 94 . 239 . . 235 347 532 138 601 654 Average Temperature 103 | 14 71 9 . . 33 58 24 58 . 27 . 90 . . 102 121 144 37 209 247 Received Heat Transfer 2753 | . 297 39 . . 302 217 54 72 12 27 24 177 . . 18 207 627 60 161 459 Effects 32 | . . . . . . . . . . . . . . . . . 16 . 9 7 Shutdowns 7 | . . . . . . . . . . . . . . . . . 5 . 1 1 Energy Bleed 3 | . . . . . . . . . . . . . . . . . . . 2 1 Interference 7 | . . . . . . . . . . . . . . . . . 6 . . 1 Matter Decay 5 | . . . . . . . . . . . . . . . . . 4 . . 1 Short Circuit 1 | . . . . . . . . . . . . . . . . . . . . 1 Damage (minor) 3 | . . . . . . . . . . . . . . . . . 1 . 2 . Damage (major) 3 | . . . . . . . . . . . . . . . . . . . 3 . Damage (core) 3 | . . . . . . . . . . . . . . . . . . . 1 2 Siege Activations . | . . . . . . . . . . . . . . . . . . . . . Martial Activations . | . . . . . . . . . . . . . . . . . . . . . Shielding Activations . | . . . . . . . . . . . . . . . . . . . . . Robots Disrupted 2 | . . . . . . . . . . . . . . . . . . 1 1 . Combat Hostiles 2 | . . . . . . . . . . . . . . . . . . 1 1 . Robots Corrupted 4 | . . . . . 1 1 . . . . . . . . . 1 . . . 1 Combat Hostiles 4 | . . . . . 1 1 . . . . . . . . . 1 . . . 1 Parts Fried 23 | . . . . . 7 13 1 . . . . . . . . . . 2 . . Impact Corruptions . | . . . . . . . . . . . . . . . . . . . . . Robots Melted 2 | . . . . . . . . . . . . . . . . . . . 1 1 Combat Hostiles 1 | . . . . . . . . . . . . . . . . . . . 1 . Parts Melted 12 | . 3 . . . . . 1 2 . . . . . . . . . . 3 3 Heat Transferred 6679 | 222 740 . . . 557 350 100 557 . 481 . 148 . . . . 1119 . 1443 962 Parts Sabotaged . | . . . . . . . . . . . . . . . . . . . . . Parts Stolen . | . . . . . . . . . . . . . . . . . . . . . Parts Stripped . | . . . . . . . . . . . . . . . . . . . . . Power Chain Reactions 8 | . . . . . 4 3 1 . . . . . . . . . . . . . Alert | -11 -10 -10 -10 -9 -8 -8 -8 -8 -7 -7 -7 -7 -6 -6 -6 -6 -5 -4 -4 -3 ------- Run | Yrd Mat Min Exi Min Mat Gar Mat Gar Fac Gar Fac Gar Fac Was Fac Gar Fac Fac Gar Res Maximum Alert Level 3 | . . . . . 1 2 1 2 1 2 1 . . . 2 2 2 1 3 2 Low Security (%) 49 | 100 100 100 . 100 94 1 56 25 75 40 9 100 100 100 15 . . 89 4 20 Level 1 28 | . . . . . 5 42 43 47 24 22 90 . . . 17 9 93 10 23 68 Level 2 19 | . . . . . . 55 . 26 . 36 . . . . 67 90 6 . 39 10 Level 3 2 | . . . . . . . . . . . . . . . . . . . 33 . Level 4 . | . . . . . . . . . . . . . . . . . . . . . Level 5 . | . . . . . . . . . . . . . . . . . . . . . High Security . | . . . . . . . . . . . . . . . . . . . . . Max Security . | . . . . . . . . . . . . . . . . . . . . . Peak Influence 796 | 5 157 124 . 10 226 670 326 493 258 555 302 92 7 21 609 644 439 223 796 447 Initial 447 | . . 53 . . . 146 326 143 258 . 291 25 7 2 . 409 338 210 156 447 Average 239 | . 63 31 . . 115 445 219 305 69 293 227 34 7 1 413 507 308 100 550 290 Influence Increases 8036 | 10 601 117 . 17 1153 544 184 590 . 625 95 127 . 31 983 525 799 290 880 465 Destroy 0b10 Robot/C 4060 | . 280 60 . . 660 340 100 340 . 300 60 80 . . 340 260 400 160 420 260 Destroy 0b10 Robot/NC 290 | 10 30 . . 15 80 . 15 . . 5 5 . . . 10 10 95 5 . 10 Destroy Leader 700 | . 60 10 . . 160 20 34 30 . 10 22 20 . . 80 20 120 32 40 42 Allied During Kill 732 | . . . . . . . 17 17 . 45 7 6 . . 418 55 1 18 64 84 Successful Hack 102 | . 23 . . . 9 14 . . . . . . . . . . . 12 20 24 Select Force Hacks 30 | . 30 . . . . . . . . . . . . . . . . . . . Disable Machine 375 | . 45 . . . 90 45 15 . . . . . . . 120 . 15 30 . 15 Anti-Garrison Action 800 | . . . . . . 100 . 100 . 250 . . . . . 150 . . 200 . Destroy Structure 662 | . 28 47 . 2 64 10 3 88 . . 1 6 . 31 15 30 168 18 121 30 Partial Spotted 30 | . . . . . 15 . . 15 . . . . . . . . . . . . Lose Combat Pursuer 255 | . 105 . . . 75 15 . . . 15 . 15 . . . . . 15 15 . Influence Decreases 8026 | 10 464 254 . 17 927 100 634 317 493 70 614 148 8 38 398 466 1014 496 307 1251 Entered New Map 2225 | . . 84 . . . 80 344 77 235 . 264 11 8 5 . 176 306 219 67 349 Time Decay 2944 | 10 404 170 . 17 588 . 100 . 98 . 150 . . 33 308 . 478 136 . 452 Lost Part 960 | . 50 . . . 60 20 20 60 10 . . 100 . . 10 10 210 20 100 290 Lost Ally 1047 | . 10 . . . . . 20 180 . 70 50 37 . . 80 280 20 . 140 160 Purge Threat 850 | . . . . . 279 . 150 . 150 . 150 . . . . . . 121 . . Squads Dispatched 36 | . 2 1 . . 5 . 2 . . . 1 . 1 . 6 . 9 5 . 4 Investigation 6 | . 2 1 . . 1 . . . . . . . . . 1 . 1 . . . Extermination 7 | . . . . . . . . . . . . . . . 1 . 3 1 . 2 Reinforcement 17 | . . . . . 3 . 1 . . . 1 . 1 . 3 . 5 1 . 2 Assault 2 | . . . . . . . . . . . . . . . . . . 2 . . Garrison 4 | . . . . . 1 . 1 . . . . . . . 1 . . 1 . . Intercept . | . . . . . . . . . . . . . . . . . . . . . Searches Triggered . | . . . . . . . . . . . . . . . . . . . . . Construction Impeded 4 | . . . . . 1 . 1 . . . . . . . . . 2 . . . Haulers Reinforced 2 | . . . . . . . . . . . 1 . . . 1 . . . . . Active Scanning Responses . | . . . . . . . . . . . . . . . . . . . . . Cargo Convoy Interrupts . | . . . . . . . . . . . . . . . . . . . . . Alert ID Control Effect 6 | . . . . . . . . . . . . . . . . . . . 1 5 Stealth | -11 -10 -10 -10 -9 -8 -8 -8 -8 -7 -7 -7 -7 -6 -6 -6 -6 -5 -4 -4 -3 --------- Run | Yrd Mat Min Exi Min Mat Gar Mat Gar Fac Gar Fac Gar Fac Was Fac Gar Fac Fac Gar Res Distress Signals 20 | . 7 . . . 4 . . . . . . . . . 1 . 5 2 . 1 Communications Jammed . | . . . . . . . . . . . . . . . . . . . . . Distress Signals . | . . . . . . . . . . . . . . . . . . . . . Times Spotted 325 | . 27 3 . . 43 16 11 24 2 18 10 20 4 5 12 16 33 15 32 34 Peak Tracking Total 11 | . 5 2 . . 5 5 3 6 1 7 2 11 3 5 3 7 6 8 5 10 Tactical Retreats 13 | . 4 . . . 4 1 . . . 1 . 1 . . . . . 1 1 . Traps | -11 -10 -10 -10 -9 -8 -8 -8 -8 -7 -7 -7 -7 -6 -6 -6 -6 -5 -4 -4 -3 ------- Run | Yrd Mat Min Exi Min Mat Gar Mat Gar Fac Gar Fac Gar Fac Was Fac Gar Fac Fac Gar Res Traps Triggered 21 | . . . . . 1 5 . 3 . 2 . . 1 . 5 1 1 . 2 . Indirectly . | . . . . . . . . . . . . . . . . . . . . . Trap Hack Attempts 5 | . . . . . . . . 5 . . . . . . . . . . . . Triggered . | . . . . . . . . . . . . . . . . . . . . . Disarmed 4 | . 4 . . . . . . . . . . . . . . . . . . . Reprogrammed 4 | . . . . . . . 4 . . . . . . . . . . . . . Reused . | . . . . . . . . . . . . . . . . . . . . . Traps Extracted . | . . . . . . . . . . . . . . . . . . . . . Installed . | . . . . . . . . . . . . . . . . . . . . . Triggered . | . . . . . . . . . . . . . . . . . . . . . Machines | -11 -10 -10 -10 -9 -8 -8 -8 -8 -7 -7 -7 -7 -6 -6 -6 -6 -5 -4 -4 -3 ---------- Run | Yrd Mat Min Exi Min Mat Gar Mat Gar Fac Gar Fac Gar Fac Was Fac Gar Fac Fac Gar Res Machines Disabled 38 | . 3 . . . 6 5 1 3 . 2 . . . . 8 2 1 2 4 1 Max in Single Turn 2 | . 1 . . . 1 2 1 1 . 1 . . . . 1 1 1 . 1 1 Garrison Access 1 | . . . . . . . . . . . . . . . . . . 1 . . Garrison Relay 12 | . . . . . . 2 . 2 . 2 . . . . . 2 . . 4 . Machines Repaired . | . . . . . . . . . . . . . . . . . . . . . Machines Dismantled . | . . . . . . . . . . . . . . . . . . . . . Machines Sabotaged . | . . . . . . . . . . . . . . . . . . . . . Overloaded Fab Kills . | . . . . . . . . . . . . . . . . . . . . . Hacking | -11 -10 -10 -10 -9 -8 -8 -8 -8 -7 -7 -7 -7 -6 -6 -6 -6 -5 -4 -4 -3 --------- Run | Yrd Mat Min Exi Min Mat Gar Mat Gar Fac Gar Fac Gar Fac Was Fac Gar Fac Fac Gar Res Machines Accessed 40 | . 6 1 . . 6 2 3 . 2 2 3 . . . 2 2 4 4 2 1 Terminals 31 | . 5 . . . 4 2 2 . 1 2 2 . . . 1 2 4 3 2 1 Fabricators . | . . . . . . . . . . . . . . . . . . . . . Repair Stations . | . . . . . . . . . . . . . . . . . . . . . Recycling Units 2 | . 1 . . . 1 . . . . . . . . . . . . . . . Scanalyzers . | . . . . . . . . . . . . . . . . . . . . . Garrison Access 6 | . . . . . 1 . 1 . 1 . 1 . . . 1 . . 1 . . Total Hacks 86 | . 15 1 . . 12 3 7 . 5 4 5 . . . 3 5 9 14 2 1 Successful 31 | . 8 1 . . 4 1 3 . 2 1 2 . . . 2 . . 4 2 1 Failed 55 | . 7 . . . 8 2 4 . 3 3 3 . . . 1 5 9 10 . . Catastrophic 11 | . 1 . . . 1 1 . . 1 2 1 . . . 1 . 2 1 . . Database Lockouts . | . . . . . . . . . . . . . . . . . . . . . Manual 20 | . 5 . . . 3 . 5 . 4 . . . . . . . 1 2 . . Terminals 76 | . 14 . . . 9 3 6 . 4 4 4 . . . 2 5 9 13 2 1 Fabricators . | . . . . . . . . . . . . . . . . . . . . . Repair Stations . | . . . . . . . . . . . . . . . . . . . . . Recycling Units 3 | . 1 . . . 2 . . . . . . . . . . . . . . . Scanalyzers . | . . . . . . . . . . . . . . . . . . . . . Garrison Access 6 | . . . . . 1 . 1 . 1 . 1 . . . 1 . . 1 . . Terminal Hacks 22 | . 5 1 . . 3 1 2 . 1 1 1 . . . 1 . . 3 2 1 Record 1 | . . . . . . . . . . . . . . . 1 . . . . . Part Schematic 1 | . . . . . . . . . . . . . . . . . . 1 . . Robot Analysis 1 | . 1 . . . . . . . . . . . . . . . . . . . Prototype ID Bank 1 | . . . . . 1 . . . . . . . . . . . . . . . Open Door 1 | . . 1 . . . . . . . . . . . . . . . . . . Branch Access Points 1 | . . . . . . . . . . . . . . . . . . 1 . . Emergency Access Points 1 | . . . . . . . . . . . . . . . . . . . 1 . Unreport Threat 6 | . . . . . 2 . 1 . 1 . 1 . . . . . . 1 . . Locate Traps 2 | . 1 . . . . . . . . . . . . . . . . . . 1 Disarm Traps 1 | . 1 . . . . . . . . . . . . . . . . . . . Reprogram Traps 1 | . . . . . . . 1 . . . . . . . . . . . . . Surveillance Status 1 | . 1 . . . . . . . . . . . . . . . . . . . Registered Components 1 | . 1 . . . . . . . . . . . . . . . . . . . Garrison Registry 3 | . . . . . . 1 . . . 1 . . . . . . . . 1 . Fabricator Hacks . | . . . . . . . . . . . . . . . . . . . . . Repair Station Hacks . | . . . . . . . . . . . . . . . . . . . . . Recycling Unit Hacks . | . . . . . . . . . . . . . . . . . . . . . Scanalyzer . | . . . . . . . . . . . . . . . . . . . . . Garrison Access Hacks 6 | . . . . . 1 . 1 . 1 . 1 . . . 1 . . 1 . . Unlock Access 6 | . . . . . 1 . 1 . 1 . 1 . . . 1 . . 1 . . Unauthorized Hacks 3 | . 3 . . . . . . . . . . . . . . . . . . . Terminals 2 | . 2 . . . . . . . . . . . . . . . . . . . Assimilate 1 | . 1 . . . . . . . . . . . . . . . . . . . Skim 1 | . 1 . . . . . . . . . . . . . . . . . . . Fabricators . | . . . . . . . . . . . . . . . . . . . . . Repair Stations . | . . . . . . . . . . . . . . . . . . . . . Recycling Units 1 | . 1 . . . . . . . . . . . . . . . . . . . Tunnel 1 | . 1 . . . . . . . . . . . . . . . . . . . Scanalyzers . | . . . . . . . . . . . . . . . . . . . . . Garrison Access . | . . . . . . . . . . . . . . . . . . . . . Data Cores Recovered . | . . . . . . . . . . . . . . . . . . . . . Used . | . . . . . . . . . . . . . . . . . . . . . Hacking Detections 31 | . 5 . . . 6 1 3 . 1 2 2 . . . . 2 4 3 1 1 Full Trace Events 6 | . 2 . . . 1 . . . . 1 . . . . . 1 1 . . . Feedback Events . | . . . . . . . . . . . . . . . . . . . . . Feedback Blocked . | . . . . . . . . . . . . . . . . . . . . . Robot Schematics Acquired . | . . . . . . . . . . . . . . . . . . . . . Robots Built . | . . . . . . . . . . . . . . . . . . . . . Authchips . | . . . . . . . . . . . . . . . . . . . . . Time . | . . . . . . . . . . . . . . . . . . . . . Total Robot Build Rating . | . . . . . . . . . . . . . . . . . . . . . Part Schematics Acquired 1 | . . . . . . . . . . . . . . . . . . 1 . . Parts Built . | . . . . . . . . . . . . . . . . . . . . . Authchips . | . . . . . . . . . . . . . . . . . . . . . Time . | . . . . . . . . . . . . . . . . . . . . . Total Part Build Rating . | . . . . . . . . . . . . . . . . . . . . . Parts Repaired . | . . . . . . . . . . . . . . . . . . . . . Time . | . . . . . . . . . . . . . . . . . . . . . Parts Recycled . | . . . . . . . . . . . . . . . . . . . . . Recycled Matter . | . . . . . . . . . . . . . . . . . . . . . Retrieved Matter . | . . . . . . . . . . . . . . . . . . . . . Retrieved Components . | . . . . . . . . . . . . . . . . . . . . . Parts Scanalyzed . | . . . . . . . . . . . . . . . . . . . . . Part Schematics Acquired . | . . . . . . . . . . . . . . . . . . . . . Parts Damaged . | . . . . . . . . . . . . . . . . . . . . . Bothacking | -11 -10 -10 -10 -9 -8 -8 -8 -8 -7 -7 -7 -7 -6 -6 -6 -6 -5 -4 -4 -3 ------------ Run | Yrd Mat Min Exi Min Mat Gar Mat Gar Fac Gar Fac Gar Fac Was Fac Gar Fac Fac Gar Res Used RIF Installer 6 | . . . . . . 1 . 1 . 1 . . . . . 1 . . 2 . Hotswap 1 | . . . . . . . . . . . . . . . . 1 . . . . Command Fork 1 | . . . . . . . . . . . . . . . . . . . 1 . Watcher Feeds 1 | . . . . . . . . 1 . . . . . . . . . . . . Patrol Navigation 1 | . . . . . . . . . . 1 . . . . . . . . . . Alert ID Control 1 | . . . . . . . . . . . . . . . . . . . 1 . Robots Hacked 65 | . . . . . . 1 5 9 3 8 8 6 . . . 4 . 2 10 9 Non-combat 7 | . . . . . . . . . 2 . 3 . . . . . . . . 2 Combat 58 | . . . . . . 1 5 9 1 8 5 6 . . . 4 . 2 10 7 Robot Hacks Applied 65 | . . . . . . 1 5 9 3 8 8 6 . . . 4 . 2 10 9 parse_system 1 | . . . . . . 1 . . . . . . . . . . . . . . mark_security 1 | . . . . . . . . . . . 1 . . . . . . . . . disable_weapons 2 | . . . . . . . . 1 . . 1 . . . . . . . . . go_dormant 1 | . . . . . . . . 1 . . . . . . . . . . . . overwrite_iff 21 | . . . . . . . . 1 . 5 . 6 . . . 2 . . 6 1 streamctrl_high 2 | . . . . . . . . 2 . . . . . . . . . . . . formatsys_low 1 | . . . . . . . . . 1 . . . . . . . . . . . formatsys_high 36 | . . . . . . . 5 4 2 3 6 . . . . 2 . 2 4 8 Relay Couplers Released 52 | . . . . . . 10 . 10 . 7 . . . . . 8 . . 17 . Machine Destruction 52 | . . . . . . 10 . 10 . 7 . . . . . 8 . . 17 . Attached 35 | . . . . . . 1 2 6 2 3 4 1 . . . 3 1 1 4 7 Fabnet Peak Effective % . | . . . . . . . . . . . . . . . . . . . . . Robots Rewired 5 | . . . . . . . . . . . . . . . . 2 . . 3 . Allies Hacked 4 | . . . . . . . . . . . . 1 . . . . . . . 3 Hacks Repelled . | . . . . . . . . . . . . . . . . . . . . . Allies | -11 -10 -10 -10 -9 -8 -8 -8 -8 -7 -7 -7 -7 -6 -6 -6 -6 -5 -4 -4 -3 -------- Run | Yrd Mat Min Exi Min Mat Gar Mat Gar Fac Gar Fac Gar Fac Was Fac Gar Fac Fac Gar Res Total Allies 89 | . 1 1 . . . . 5 7 3 8 6 6 . 19 . 6 . 2 15 10 Largest Group 19 | . 1 1 1 . . . 4 5 3 6 3 3 . 19 15 10 2 2 5 6 Highest-Rated Group 702 | . 10 31 31 . . . 64 78 51 123 138 138 . 702 598 404 51 112 238 271 Highest-Rated Ally 90 | . 10 31 31 . . . 16 16 32 32 90 90 . 50 50 50 27 56 80 89 Total Orders . | . . . . . . . . . . . . . . . . . . . . . Ally Attacks 514 | . . . . . . . 15 47 . 53 9 44 . 76 96 42 . 11 33 88 Total Damage 14204 | . . . . . . . 180 515 . 1134 346 1066 . 3374 2599 1095 . 314 904 2677 Kills 81 | . . . . . . . 1 6 . 12 3 3 . 10 19 7 . 3 7 10 Allies Corrupted 2 | . . . . . . . . . . . . . . . . . . . . 2 Allies Melted . | . . . . . . . . . . . . . . . . . . . . . Intel | -11 -10 -10 -10 -9 -8 -8 -8 -8 -7 -7 -7 -7 -6 -6 -6 -6 -5 -4 -4 -3 ------- Run | Yrd Mat Min Exi Min Mat Gar Mat Gar Fac Gar Fac Gar Fac Was Fac Gar Fac Fac Gar Res Active Infowar (turns) 8843 | 21 998 600 292 546 2046 584 216 216 . . . . . 399 711 434 624 397 . 759 Sensors 5749 | . . 531 292 546 2046 561 216 216 . . . . . . 546 434 361 . . . Terrain 2288 | 21 321 . . . 1187 . . . . . . . . . . . . . . 759 Seismic 2010 | 10 998 71 . . 685 246 . . . . . . . . . . . . . . Cloaking 1382 | . . . . . . . . . . . . . . 399 169 . 417 397 . . Robot Analysis Total 1 | . 1 . . . . . . . . . . . . . . . . . . . Derelict Logs Recovered 2 | . . . . 2 . . . . . . . . . . . . . . . . Drone Launches . | . . . . . . . . . . . . . . . . . . . . . Drone Recoveries . | . . . . . . . . . . . . . . . . . . . . . Exploration | -11 -10 -10 -10 -9 -8 -8 -8 -8 -7 -7 -7 -7 -6 -6 -6 -6 -5 -4 -4 -3 ------------- Run | Yrd Mat Min Exi Min Mat Gar Mat Gar Fac Gar Fac Gar Fac Was Fac Gar Fac Fac Gar Res Turns Passed 13986 | 76 998 600 292 546 2233 750 216 873 338 536 309 216 13 599 711 842 1239 454 1013 1132 Spaces Moved 8036 | 51 909 494 209 320 1116 407 106 422 213 294 179 121 25 412 395 342 519 343 657 502 Core 168 | 1 . . . . . . . . . . . 47 25 83 . . 3 . . 9 Treads 161 | . . . . . . . . . . . . . . . . . 161 . . . Legs . | . . . . . . . . . . . . . . . . . . . . . Wheels 6236 | 50 909 494 209 320 1116 407 106 422 213 294 179 74 . . . . 152 334 657 300 Hover 1471 | . . . . . . . . . . . . . . 329 395 342 203 9 . 193 Flight . | . . . . . . . . . . . . . . . . . . . . . Fastest Speed 50 | 50 80 80 140 140 140 145 145 145 145 145 145 50 50 50 68 176 95 90 90 50 Average Speed 130 | 79 80 103 140 140 151 145 145 145 145 145 145 112 50 135 137 189 164 108 109 106 Slowest Speed 1400 | 80 80 140 140 140 230 145 145 145 145 145 145 160 50 236 188 198 1400 182 110 131 Overloaded Moves . | . . . . . . . . . . . . . . . . . . . . . Propulsion Burnouts . | . . . . . . . . . . . . . . . . . . . . . Robots Hopped . | . . . . . . . . . . . . . . . . . . . . . Potential Cave-ins 8 | . . 8 . . . . . . . . . . . . . . . . . . Cave-ins Triggered . | . . . . . . . . . . . . . . . . . . . . . Exploration Rate (%) 40 | 4 83 86 57 60 83 65 13 53 6 38 7 28 2 96 14 46 13 10 70 12 Regions Visited 20 Branch Regions 3 Pre-discovered Areas 2 | . 1 . . 1 . . . . . . . . . . . . . . . . Known Exits Taken 7 | . . . . 1 1 . 1 . 1 . 1 . . . 1 . . 1 . . Unknown Exits Taken 5 | 1 1 1 1 . . . . . . . . . . . . . 1 . . . Scrap Searched 3 | . . 1 . 2 . . . . . . . . . . . . . . . . Spaces Dug 103 | . . 83 . . . . . 8 . . . . . . 3 4 2 1 . 2 Terrain Destroyed 459 | . 27 119 . 2 54 . 2 57 . . . . . . 4 10 83 8 80 13 Melee . | . . . . . . . . . . . . . . . . . . . . . Projectile 84 | . . . . 2 . . . . . . . . . . 4 8 39 8 10 13 AOE 375 | . 27 119 . . 54 . 2 57 . . . . . . . 2 44 . 70 . Terrain Rammed . | . . . . . . . . . . . . . . . . . . . . . Walls Destroyed . | . . . . . . . . . . . . . . . . . . . . . Machines Disabled . | . . . . . . . . . . . . . . . . . . . . . Actions | -11 -10 -10 -10 -9 -8 -8 -8 -8 -7 -7 -7 -7 -6 -6 -6 -6 -5 -4 -4 -3 --------- Run | Yrd Mat Min Exi Min Mat Gar Mat Gar Fac Gar Fac Gar Fac Was Fac Gar Fac Fac Gar Res Total 10633 | 71 1070 556 208 406 1502 525 154 628 240 373 211 169 25 450 544 465 733 404 862 1037 Wait 1131 | 1 70 11 . 71 191 14 25 82 16 13 8 12 . 22 53 24 55 2 61 400 Move 8011 | 50 908 493 208 319 1115 405 105 420 212 292 178 119 25 411 394 340 518 342 655 502 Hop . | . . . . . . . . . . . . . . . . . . . . . Pick Up 159 | 5 11 16 . 3 16 15 . 14 1 8 . 4 . 2 3 17 5 9 17 13 Fast Attach 107 | 7 3 3 . . 15 1 . 2 . 5 . . . 7 10 3 21 15 6 9 Attach 104 | 1 7 . . . 10 5 2 9 3 1 2 10 . 1 1 1 15 3 13 20 Detach 21 | 1 . . . . 1 . . 1 . . . . . . 2 . 5 1 2 8 Swap 106 | . 1 4 . 3 21 6 2 9 1 4 2 1 . . 2 6 12 4 9 19 Drop 124 | . 9 6 . . 25 11 . 4 . 6 1 1 . 7 6 4 14 15 4 11 Fire 638 | 6 60 22 . 10 108 32 9 38 4 28 19 22 . . 8 49 86 13 71 53 Melee 25 | . . . . . . 2 6 17 . . . . . . . . . . . . Ram 3 | . 1 1 . . . . . . . . . . . . . . . . . 1 Kick . | . . . . . . . . . . . . . . . . . . . . . Crush 2 | . . . . . . . . . . . . . . . . . 2 . . . Escape Stasis 171 | . . . . . . 34 . 24 . 15 . . . . 65 13 . . 20 . Rewire 26 | . . . . . . . 5 3 3 1 1 . . . . 8 . . 4 1 Trap 5 | . . . . . . . . 5 . . . . . . . . . . . . Miscellaneous . | . . . . . . . . . . . . . . . . . . . . . Route ------- -11/Scrapyard -10/Materials (discovered 3 exits: [*Mat x2] / *Min) -10/Mines (discovered 3 exits: [*Mat x2] / [*Exi]) -10/Exiles (discovered 2 exits: [*Min x2]) -9/Mines (discovered 2 exits: *Mat x2) -8/Materials (discovered 3 exits: *Fac x2 / Gar) -8/Garrison (discovered 3 exits: *Mat x3) -8/Materials -8/Garrison -7/Factory (discovered 3 exits: *Sto / *Low / Gar) -7/Garrison (discovered 3 exits: *Fac x3) -7/Factory (discovered 2 exits: [*Fac] / Gar) -7/Garrison -6/Factory -6/Waste -6/Factory (discovered 2 exits: *Fac / Gar) -6/Garrison -5/Factory -4/Factory (discovered 4 exits: Upp x2 / Arm / Gar) -4/Garrison (discovered 3 exits: *Res x3) -3/Research History --------- Turn | Location | Event 21 | -11/Scrapyard | Discovered new exit (range 15) 77 | -11/Scrapyard | Entered Materials 250 | -10/Materials | Discovered new exit (range 13) 352 | -10/Materials | Lost 4 parts (1p2n1w) 366 | -10/Materials | Discovered new exit (range 13) 599 | -10/Materials | Build established: Scavenger-Mutant 654 | -10/Materials | Discovered new exit (range 16) 1075 | -10/Materials | Entered Mines 1108 | -10/Mines | Build established: Mutant 1141 | -10/Mines | Found a damaged Exp. Sensor Array with a note attached 1144 | -10/Mines | Found Prototype Device 1144 | -10/Mines | Identified Exp. Sensor Array 1262 | -10/Mines | Assembled infested the area 1352 | -10/Mines | Discovered new exit (range 9) 1362 | -10/Mines | Met a Derelict shopkeep closing up shop 1438 | -10/Mines | Found DCF Scrap (9 items) 1471 | -10/Mines | Discovered new exit (range 6) 1474 | -10/Mines | Received a Mining Laser from a helpful Derelict 1666 | -10/Mines | Discovered new exit (range 5) 1675 | -10/Mines | Entered Exiles 1675 | -10/Exiles | Accompanied by 1 ally 1694 | -10/Exiles | Discovered new exit (range 15) 1737 | -10/Exiles | Met 8R-AWN 1782 | -10/Exiles | Met EX-HEX 1832 | -10/Exiles | Met EX-BIN 1884 | -10/Exiles | Met EX-DEC 1953 | -10/Exiles | Discovered new exit (range 10) 1967 | -10/Exiles | Entered Mines 1980 | -9/Mines | Discovered new exit (range 6) 2091 | -9/Mines | Found a hidden stash of uninstalled traps 2110 | -9/Mines | YI-UF0 nonchalantly dropped a Grenade Launcher on the ground 2122 | -9/Mines | Identified exit to Materials 2513 | -9/Mines | Entered Materials 2513 | -8/Materials | Evolved 4 slots: Utility x4 2878 | -8/Materials | Build established: Scavenger-Mutant 3293 | -8/Materials | Discovered new exit (range 16) 3322 | -8/Materials | Identified exit to Factory 3498 | -8/Materials | Build established: Skirmisher 3877 | -8/Materials | Discovered exit to Factory (range 4) 4014 | -8/Materials | Build established: Mutant 4683 | -8/Materials | Garrison activated, responded to threat 4745 | -8/Materials | Identified exit to Garrison 4746 | -8/Materials | Entered Garrison 4858 | -8/Garrison | Triggered checkpoint 5007 | -8/Garrison | Discovered new exit (range 10) 5019 | -8/Garrison | Identified exit to Materials 5048 | -8/Garrison | Triggered checkpoint 5104 | -8/Garrison | Garrison Relay disabled 5170 | -8/Garrison | Discovered exit to Materials (range 20) 5170 | -8/Garrison | Discovered exit to Materials (range 66) 5170 | -8/Garrison | Discovered exit to Materials (range 79) 5278 | -8/Garrison | Triggered checkpoint 5332 | -8/Garrison | Triggered checkpoint 5376 | -8/Garrison | Installed Relay Interface Framework 5407 | -8/Garrison | Garrison Relay disabled 5496 | -8/Garrison | Entered Materials 5558 | -8/Materials | Garrison activated, responded to threat 5664 | -8/Materials | Build established: Bothacker-Mutant 5710 | -8/Materials | Identified exit to Garrison 5712 | -8/Materials | Entered Garrison 5712 | -8/Garrison | Accompanied by 4 allies 5724 | -8/Garrison | Triggered checkpoint 5856 | -8/Garrison | P-60 Hacker assimilated allied Trooper 3c 5899 | -8/Garrison | Lost 4 allies 5908 | -8/Garrison | Expanded RIF knowledge: Watcher Feeds 5959 | -8/Garrison | Lost 3 parts (1p2u) 6048 | -8/Garrison | Triggered checkpoint 6087 | -8/Garrison | Garrison Relay disabled 6125 | -8/Garrison | Core integrity fell below 50% 6234 | -8/Garrison | Triggered checkpoint 6246 | -8/Garrison | Triggered checkpoint 6282 | -8/Garrison | Triggered checkpoint 6337 | -8/Garrison | Lost 3 allies 6350 | -8/Garrison | Triggered checkpoint 6411 | -8/Garrison | System corruption reached 10% 6510 | -8/Garrison | Garrison Relay disabled 6574 | -8/Garrison | Discovered exit to Factory (range 8) 6585 | -8/Garrison | Entered Factory 6585 | -7/Factory | Evolved 2 slots: Utility x1, Weapon x1 6637 | -7/Factory | Discovered new exit (range 4) 6651 | -7/Factory | Identified exit to Lower Caves 6776 | -7/Factory | Allied Derelicts emerged from ambush trap array 6820 | -7/Factory | Discovered new exit (range 10) 6833 | -7/Factory | Identified exit to Storage 6906 | -7/Factory | Identified exit to Garrison 6923 | -7/Factory | Entered Garrison 6923 | -7/Garrison | Accompanied by 3 allies 6950 | -7/Garrison | Expanded RIF knowledge: Patrol Navigation 7003 | -7/Garrison | Triggered checkpoint 7039 | -7/Garrison | Garrison Relay disabled 7064 | -7/Garrison | Rescued a captive Derelict 7250 | -7/Garrison | Assembled breached garrison interior 7266 | -7/Garrison | Lost 3 allies 7289 | -7/Garrison | Garrison Relay disabled 7380 | -7/Garrison | Build established: Bothacker-Gunner 7426 | -7/Garrison | Discovered new exit (range 12) 7426 | -7/Garrison | Discovered new exit (range 66) 7426 | -7/Garrison | Discovered new exit (range 49) 7448 | -7/Garrison | Identified exit to Factory 7459 | -7/Garrison | Entered Factory 7459 | -7/Factory | Accompanied by 1 ally 7604 | -7/Factory | Lost 3 allies 7691 | -7/Factory | Discovered new exit (range 5) 7767 | -7/Factory | Identified exit to Garrison 7768 | -7/Factory | Entered Garrison 7768 | -7/Garrison | Accompanied by 3 allies 7795 | -7/Garrison | Spotted B-75 Beast 7795 | -7/Garrison | Spotted B-75 Beast 7822 | -7/Garrison | Allies destroyed B-75 Beast 7839 | -7/Garrison | Allies destroyed B-75 Beast 7908 | -7/Garrison | Triggered checkpoint 7961 | -7/Garrison | Released all parts (8) 7963 | -7/Garrison | Core integrity fell below 50% 7977 | -7/Garrison | Discovered new exit (range 15) 7984 | -7/Garrison | Entered Factory 7984 | -6/Factory | Evolved 2 slots: Propulsion x2 7985 | -6/Factory | Lost 10 parts (1p3u6w) 7991 | -6/Factory | Lost 7 allies 7997 | -6/Factory | Sucked down chute 7997 | -6/Factory | Entered Waste 8005 | -6/Waste | Spotted C-40 Crusher 8006 | -6/Waste | Spotted C-40 Crusher 8014 | -6/Waste | Spotted C-40 Crusher 8017 | -6/Waste | Spotted C-40 Crusher 8017 | -6/Waste | Spotted C-40 Crusher 8024 | -6/Waste | Warlord forces began an assault 8028 | -6/Waste | Allies destroyed C-40 Crusher 8218 | -6/Waste | Build established: Mutant 8237 | -6/Waste | Discovered new exit (range 12) 8596 | -6/Waste | Entered Factory 8596 | -6/Factory | Accompanied by 15 allies 8733 | -6/Factory | Discovered new exit (range 16) 9213 | -6/Factory | Garrison activated, responded to threat 9285 | -6/Factory | Identified exit to Garrison 9307 | -6/Factory | Entered Garrison 9307 | -6/Garrison | Accompanied by 10 allies 9314 | -6/Garrison | Build established: Tank 9340 | -6/Garrison | Expanded RIF knowledge: Hotswap 9459 | -6/Garrison | Triggered checkpoint 9532 | -6/Garrison | Lost 7 allies 9536 | -6/Garrison | Garrison Relay disabled 9833 | -6/Garrison | Lost 6 allies 9872 | -6/Garrison | Build established: Bothacker-Tank 9984 | -6/Garrison | Garrison Relay disabled 10124 | -6/Garrison | Discovered new exit (range 9) 10149 | -6/Garrison | Entered Factory 10149 | -5/Factory | Accompanied by 2 allies 10149 | -5/Factory | Evolved 2 slots: Power x1, Utility x1 10295 | -5/Factory | Build established: Botlord-Tank 10746 | -5/Factory | Found Prototype Launcher 10746 | -5/Factory | Identified Mni. Smartbomb Launcher 10771 | -5/Factory | Discovered new exit (range 8) 10854 | -5/Factory | Lost 6 parts (2n2u2w) 11109 | -5/Factory | Lost 3 parts (1p2n) 11132 | -5/Factory | System corruption reached 10% 11167 | -5/Factory | Lost 8 parts (3n2u3w) 11388 | -5/Factory | Entered another Factory area 11388 | -4/Factory | Evolved 2 slots: Propulsion x1, Utility x1 11597 | -4/Factory | Identified exit to Upper Caves 11597 | -4/Factory | Identified exit to Armory 11741 | -4/Factory | Spotted B-86 Titan 11793 | -4/Factory | Garrison activated, responded to threat 11822 | -4/Factory | Build established: Bothacker-Tank 11841 | -4/Factory | Identified exit to Garrison 11842 | -4/Factory | Entered Garrison 11856 | -4/Garrison | Found embedded Infiltrators 11866 | -4/Garrison | Triggered checkpoint 11886 | -4/Garrison | Garrison Relay disabled 11970 | -4/Garrison | Spotted B-86 Titan 11976 | -4/Garrison | Triggered checkpoint 11977 | -4/Garrison | Triggered checkpoint 12014 | -4/Garrison | Lost 3 allies 12030 | -4/Garrison | Lost 5 parts (1p2u2w) 12089 | -4/Garrison | Destroyed B-86 Titan 12179 | -4/Garrison | Discovered new exit (range 10) 12210 | -4/Garrison | Triggered checkpoint 12268 | -4/Garrison | Lost 4 parts (1p2n1w) 12317 | -4/Garrison | Garrison Relay disabled 12320 | -4/Garrison | Triggered checkpoint 12354 | -4/Garrison | Discovered new exit (range 76) 12354 | -4/Garrison | Discovered new exit (range 12) 12354 | -4/Garrison | Discovered new exit (range 78) 12381 | -4/Garrison | Garrison Relay disabled 12534 | -4/Garrison | Triggered checkpoint 12544 | -4/Garrison | Garrison Relay disabled 12545 | -4/Garrison | Lost 4 allies 12591 | -4/Garrison | Build established: Botlord-Gunner 12624 | -4/Garrison | Expanded RIF knowledge: Alert ID Control 12674 | -4/Garrison | Triggered checkpoint 12818 | -4/Garrison | Expanded RIF knowledge: Command Fork 12855 | -4/Garrison | Entered Research 12855 | -3/Research | Accompanied by 4 allies 12855 | -3/Research | Evolved 2 slots: Utility x2 13250 | -3/Research | Build established: Botlord-Tank 13519 | -3/Research | Lost 3 allies 13549 | -3/Research | Lost 6 parts (1n3u2w) 13822 | -3/Research | P-80 Master assimilated allied Electro 8a 13937 | -3/Research | Core integrity fell below 50% 13943 | -3/Research | System corruption reached 10% 13953 | -3/Research | Found Prototype Launcher 13953 | -3/Research | Identified Hellfire Missile Launcher 13957 | -3/Research | Lost 4 allies 13979 | -3/Research | Core integrity fell below 20% 13983 | -3/Research | Released all parts (3) 13987 | -3/Research | Destroyed by S-43 Plague with Heavy Machine Gun Last Messages --------------- 13966_ Targeting Computer destroyed. 13967_ Lgt. Antimatter Reactor destroyed. 13967_ Slug penetrates S-43 Plague. 13969_ System corrupted: Component data lost. 13970_ Slug penetrates S-43 Plague. 13970_ S-43 Plague destroyed. 13970_ Critical hit (Burn: +37). 13972_ Adv. Weight Redist. System destroyed. 13973_ Slug penetrates S-43 Plague. 13973_ Relay Coupler [Hunter] destroyed. 13975_ Cmb. Antigrav System destroyed. 13975_ Adv. Heat Sink destroyed. 13976_ Slug penetrates G-67 Veteran. 13976_ G-67 Veteran suffers critical hit (Destroy). 13976_ Destroyed Flexi-carbon Leg. 13976_ Relay Coupler [Sentry] destroyed. 13977_ Adv. KE Penetrator destroyed. 13983_ Released Cmb. Antigrav System. 13983_ Released Hcp. Storage Unit. 13983_ Released Cmb. Antigrav System. Map ----- +----------------------------------------------------+ | ?????????????????????????????????????????????????? | | ?????????????????????????????????????????????????? | | ?????????????????????????????????????????????????? | | ?????????????????????????????????????????????????? | | ?????????????????????????????????????????????????? | | ?????????????????????????????????????????????????? | | ?????????????????????????????????????????????????? | | ?????????????????????????????????????????????????? | | ?????????????????????????????????????????????????? | | ?????????????????????????????????????????????????? | | ?????????????????????????????????????????????????? | | ?????????????????????????????????????????????????? | | ?????????????????????????????????????????????????? | | ?????????????????????????????????????????????????? | | ?????????????????????????????????????????????????? | | ?????????????????????????????????????????????????? | | ?????????????????????????????????????????????????? | | ?????????????????????????????????????????????????? | | ?????????????????????????????????????????????????? | | ?????????????????????????????????????????????????? | | ?????????????????????????????????????????????????? | | ???????????????????????????????????######????????? | | ???????????????????????????????????# #????????? | | ???????????????????????????????????# #????????? | | ???????????????# ##+############# ########?? | | ?????????? @ s + # ] #?? | | ?????????????????##+########/####### # # ? | | ?????????????????????????#|%!![ #??# # +?? | | ?????????????????????????#=[=%= #??# # #?? | | ?????????????????????????# !![ #??# # #?? | | ?????????????????????????#!![!|!#??# # ??? | | ?????????????????????????#*!!!! #??###/####/####? | | ?????????????????????????#![=!==#??# * % # | | ?????????????????????????########??# = =% # | | ???????????????????????????????????# * + | | ??????????????????????????????????## % !=# | | ??????????????????????????????????#" [*%#? | | ??????????????????????????????????## " """[[#?? | | ???????????????????????????????????# """T"""*%##? | | ???????????????????????????????????###########+!## | | ????????????????????????????????????????????#=!%=! | | ?????????????????????????????????????????#??#!=| ! | | ????????????????????????????????????????????# * | | ??????????????????????????????????#?????????# !* | | ?????????????????????????????????????????#?## = | | ????????????????????????????????????????????# | | ????????????????????????????????????????????# | | ????????????????????????????????????????#?#?# " | | ????????????????????????????????????????????#####% | | ????????????????????????????????????????#?????# " | +----------------------------------------------------+ Best States ------------- Heat Dissipation 122 Energy Generation 46 Energy Capacity 575 Matter Stores 300 Matter Capacity 300 Sight Range 16 Robot Scan Range 20 Terrain Scan Range 16 Terrain Scan Density 10 Cloak Strength 3 Power Amplification 30 Additional Mass Support 12 Base Temperature (-) 200 Armor Coverage 600 Resistance: TH 30 Resistance: EM 25 Phase Shifting 15 Evasion (%) 55 Targeting Accuracy 8 Target Analysis 5 Recoil Reduction 4 Offensive Hacking 12 Defensive Hacking 14 Relay Coupler Types 5 Relay Coupler Value 99 Authchip Count 3 Item Schematics ----------------- Fusion Bomb Launcher | -4/Factory | Hacked Robot Schematics ------------------ None Fabricated ------------ Nothing Repaired ---------- Nothing Alien Tech Used ----------------- None Achievements -------------- None Challenges ------------ None Game ------ Seed ElectrostormIonicMultitool Manual? 0 Play Time 03:05:56 Cumulative 281.4 hours Start 2025.07.22 @ 18:45:08 End 2025.07.25 @ 19:55:55 Sessions 3 Manual Loads 0 Difficulty Rogue Special Mode None Game No. 108 Rogue 37 Adventurer 68 Explorer 3 Win Type - Total 23 Types 15/1/1/4/1/0/0/0/0/1 Lore% 74 Gallery% 72 Achievement% 69 Wizard Run 0 Options --------- Layout 0 ASCII 0 Keyboard 0 Movement Numpad Keybinds 0 Fullscreen 1 Font 24/Smallcaps Map View 76x50 Zoom Use 0% Tactical HUD 1 Map Filters NONE Filters NONE Steam 1 RUN: 3cfd9791-cec2-4db4-8ec2-a15e2deea832